Cogmind - Beta 15 @@@ ROGUE MODE // 2025.09.24 @ 16:44:37 Player: glorp Result: Destroyed by G-34 Mercenary with Small Laser Performance ------------- Evolutions (1) 500 Regions Visited (2) 400 Robots Destroyed (32) 160 Value Destroyed (875) 875 Prototype IDs (0) 0 Alien Tech Used (0) 0 Bonus (0) 0 TOTAL SCORE: 1935 Bonus ------- None Cogmind --------- Core Integrity 0/400 Matter 285/300 Energy 125/125 System Corruption 0% Temperature Cool (12) Movement Core (450) Ox8 Location -9/Materials Parts ------- > --- POWER (1) -------- Light Ion Engine > --- PROPULSION (4) --- Armored Treads Armored Treads > --- UTILITY (2) ------ Large Storage Unit > --- WEAPON (2) ------- Katana Katana > --- INVENTORY (15) --- Aluminum Leg Medium Storage Unit Sensor Array Hardened Light Armor Plating Grenade Launcher Improved Datajack Improved Datajack Katana Katana Peak State ------------ > --- POWER ------------ Light Ion Engine > --- PROPULSION ------- Armored Treads Armored Treads Armored Treads Armored Treads > --- UTILITY ---------- Medium Storage Unit Sensor Array > --- WEAPON ----------- Katana Katana > --- INVENTORY -------- Aluminum Leg Aluminum Leg Aluminum Leg Aluminum Leg Small Storage Unit Hardened Light Armor Plating Grenade Launcher Improved Datajack Katana Katana [Rating: 22] Favorites ----------- Power Light Ion Engine Engine Light Ion Engine Propulsion Armored Treads Treads Armored Treads Leg Aluminum Leg Utility Medium Storage Unit Device Sensor Array Storage Medium Storage Unit Protection Medium Armor Plating Weapon Katana Energy Gun Medium Laser Energy Cannon Ion Cannon Ballistic Gun Light Assault Rifle Launcher Grenade Launcher Slashing Weapon Katana Build | -11 -10 -9 ------- Run | Yrd Mat Mat Slots Evolved 2 | . . 2 Power . | . . . Propulsion 2 | . . 2 Utility . | . . . Weapon . | . . . Parts Attached 31 | 6 2 23 Power 5 | 1 1 3 Engine 5 | 1 1 3 Core . | . . . Reactor . | . . . Propulsion 12 | 2 1 9 Treads 6 | . . 6 Leg 6 | 2 1 3 Wheel . | . . . Hover . | . . . Flight . | . . . Utility 7 | 1 . 6 Device 2 | . . 2 Storage 3 | 1 . 2 Processor . | . . . Hackware . | . . . Protection 2 | . . 2 Artifact . | . . . Weapon 7 | 2 . 5 Energy Gun 1 | 1 . . Energy Cannon 2 | . . 2 Ballistic Gun 1 | 1 . . Ballistic Cannon . | . . . Launcher 1 | . . 1 Special Weapon . | . . . Impact Weapon . | . . . Slashing Weapon 2 | . . 2 Piercing Weapon . | . . . Special Melee Weapon . | . . . Unidentified Prototypes . | . . . Parts Lost 13 | . 3 10 Power 4 | . 1 3 Propulsion 5 | . 1 4 Utility 2 | . . 2 Weapon 2 | . 1 1 Highest Loss Streak 5 | . 2 5 To Critical Strikes . | . . . Average Backups 7 | 2 5 7 Power . | . 1 . Propulsion 2 | . 4 2 Utility 1 | . . 1 Weapon 1 | . . 2 Tool/Special . | . . . Unused Backups 6 | 1 . 5 Power . | . . . Propulsion 1 | . . 1 Utility . | . . . Weapon 3 | 1 . 2 Tool/Special 2 | . . 2 Average Slot Usage (%) 89 | . 78 92 Engine 11 | . 12 10 Treads 25 | . . 32 Leg 12 | . 26 9 Device 5 | . . 7 Storage 11 | . 14 11 Energy Gun 2 | . 11 . Energy Cannon 3 | . . 4 Ballistic Gun 3 | . 13 . Slashing Weapon 11 | . . 15 Peak Build Rating 22 | 6 6 22 Average Rating 14 | 4 5 17 On Entrance 3 | . 6 5 Naked Turns . | . . . Heaviest Build 30 | 13 13 30 Greatest Support 80 | 20 20 80 Greatest Overweight (x) 5 | . 2 5 Average Overweight (x) . | . . . Largest Inventory Capacity 15 | 8 8 15 Average Capacity 9 | 6 8 10 Most Carried 10 | 3 8 10 Average Carried 7 | 2 5 7 Final Capacity 15 | 8 8 15 Final Carried 9 | 3 7 9 Class Distribution -------------------- 92% | Mutant 7% | Scavenger-Mutant Dominant Class ---------------- Mutant | -10/Materials Mutant | -9/Materials Resources | -11 -10 -9 ----------- Run | Yrd Mat Mat Matter Collected 650 | 215 106 329 Remotely . | . . . Salvage Created 1103 | . 279 824 Parts 58 | . 13 45 Haulers Intercepted . | . . . Recyclers Shooed . | . . . Parts Field Recycled . | . . . Retrieved Matter . | . . . Parts Self-Destructed . | . . . Prevented . | . . . Kills | -11 -10 -9 ------- Run | Yrd Mat Mat Combat Hostiles Destroyed 28 | . 8 20 Melee 17 | . . 17 Guns 8 | . 8 . Cannons 2 | . . 2 AOE 1 | . . 1 Classes Destroyed 7 | . 2 5 Worker 2 | . . 2 Recycler 1 | . . 1 Watcher 1 | . . 1 Swarmer 10 | . 3 7 Grunt 13 | . 5 8 Duelist 1 | . . 1 Sentry 4 | . . 4 Best Kill Streak 6 | . 3 6 Combat Bots Only 6 | . 3 6 Max Kills in Single Turn 2 | . 1 2 Gunslinging . | . . . Exploded 1 | . . 1 Melee 2 | . . 2 Uniques/NPCs Destroyed . | . . . Combat | -11 -10 -9 -------- Run | Yrd Mat Mat Hostile Shots Fired 244 | . 87 157 Missed 55 | . 24 31 Hits 189 | . 63 126 Melee 4 | . . 4 Projectile 185 | . 63 122 Critical Strikes 10 | . 2 8 Damage Taken 2498 | . 670 1828 Core 607 | . 206 401 Absorbed by Shields . | . . . Core Remaining (%) 58 | 100 17 . Volleys Fired 79 | . 55 24 Largest 2 | . 2 2 Hottest 120 | . 70 120 Shots Fired 131 | . 98 33 Gun 107 | . 98 9 Cannon 18 | . . 18 Launcher 6 | . . 6 Special . | . . . Kinetic 60 | . 51 9 Thermal 65 | . 47 18 Explosive 6 | . . 6 Electromagnetic . | . . . Robot Hit Streak 8 | . 7 8 Robot Miss Streak 4 | . 3 4 Penetration Max . | . . . Secondary Targets 2 | . 2 . Max Gunslinging Chain 1 | . 1 . Shots Hit Robots 129 | . 64 65 Core Hits 46 | . 18 28 Critical Kills . | . . . Critical Parts Destroyed 1 | . 1 . Critical Strikes 6 | . 3 3 Burn 2 | . 2 . Destroy 1 | . 1 . Sever 3 | . . 3 Melee Attacks 63 | . . 63 Impact . | . . . Slashing 63 | . . 63 Piercing . | . . . Sneak Attacks 3 | . . 3 Combat Hostiles . | . . . Follow-up Attacks 4 | . . 4 Damage Inflicted 2477 | . 666 1811 Guns 737 | . 666 71 Cannons 184 | . . 184 Explosions 91 | . . 91 Melee 1465 | . . 1465 Ramming . | . . . Kinetic 334 | . 263 71 Thermal 587 | . 403 184 Explosive 91 | . . 91 Electromagnetic . | . . . Impact . | . . . Slashing 1465 | . . 1465 Piercing . | . . . Highest Corruption . | . . . Average Corruption . | . . . Corruption Purged . | . . . Corruption Blocked . | . . . Overload Shots . | . . . Overflow Damage 101 | . . 101 Projectiles . | . . . Explosions 12 | . . 12 Melee 89 | . . 89 Knockbacks . | . . . Impact . | . . . Kinetic . | . . . Secondary . | . . . Self-Inflicted Damage 172 | . . 172 Shots 6 | . . 6 Rammed . | . . . Targets Rammed . | . . . Kicked . | . . . Crushed . | . . . Highest Temperature 362 | . 362 159 Average Temperature 117 | . 143 43 Received Heat Transfer 1047 | . 354 693 Effects 4 | . 4 . Shutdowns 1 | . 1 . Energy Bleed 1 | . 1 . Interference 2 | . 2 . Siege Activations . | . . . Martial Activations . | . . . Shielding Activations . | . . . Robots Disrupted . | . . . Combat Hostiles . | . . . Robots Corrupted . | . . . Combat Hostiles . | . . . Parts Fried . | . . . Impact Corruptions . | . . . Robots Melted . | . . . Combat Hostiles . | . . . Parts Melted 1 | . 1 . Heat Transferred 1628 | . 1332 296 Parts Sabotaged . | . . . Parts Stolen . | . . . Parts Stripped . | . . . Power Chain Reactions . | . . . Alert | -11 -10 -9 ------- Run | Yrd Mat Mat Maximum Alert Level 1 | . . 1 Low Security (%) 98 | 100 100 97 Level 1 1 | . . 2 Level 2 . | . . . Level 3 . | . . . Level 4 . | . . . Level 5 . | . . . High Security . | . . . Max Security . | . . . Peak Influence 231 | . 100 231 Initial 29 | . . 29 Average 37 | . 36 39 Influence Increases 859 | . 250 609 Destroy 0b10 Robot/C 560 | . 160 400 Destroy 0b10 Robot/NC 25 | . . 25 Destroy Leader 142 | . 30 112 Disable Machine 45 | . . 45 Destroy Structure 12 | . . 12 Lose Combat Pursuer 75 | . 60 15 Influence Decreases 652 | . 180 472 Entered New Map 41 | . . 41 Time Decay 491 | . 140 351 Lost Part 110 | . 30 80 Lost Ally 10 | . 10 . Squads Dispatched 6 | . . 6 Investigation 1 | . . 1 Extermination . | . . . Reinforcement 5 | . . 5 Assault . | . . . Garrison . | . . . Intercept . | . . . Searches Triggered . | . . . Construction Impeded . | . . . Haulers Reinforced . | . . . Active Scanning Responses . | . . . Cargo Convoy Interrupts . | . . . Stealth | -11 -10 -9 --------- Run | Yrd Mat Mat Distress Signals 6 | . 2 4 Communications Jammed . | . . . Distress Signals . | . . . Times Spotted 58 | . 15 43 Peak Tracking Total 10 | . 4 10 Tactical Retreats 4 | . 3 1 Traps | -11 -10 -9 ------- Run | Yrd Mat Mat Traps Triggered 6 | . 4 2 Indirectly . | . . . Trap Hack Attempts . | . . . Triggered . | . . . Disarmed . | . . . Reprogrammed . | . . . Reused . | . . . Traps Extracted . | . . . Installed . | . . . Triggered . | . . . Machines | -11 -10 -9 ---------- Run | Yrd Mat Mat Machines Disabled 3 | . . 3 Max in Single Turn 1 | . . 1 Machines Repaired . | . . . Machines Dismantled . | . . . Machines Sabotaged . | . . . Overloaded Fab Kills . | . . . Hacking | -11 -10 -9 --------- Run | Yrd Mat Mat Machines Accessed 1 | . 1 . Terminals 1 | . 1 . Fabricators . | . . . Repair Stations . | . . . Recycling Units . | . . . Scanalyzers . | . . . Garrison Access . | . . . Total Hacks 1 | . 1 . Successful 1 | . 1 . Failed . | . . . Catastrophic . | . . . Database Lockouts . | . . . Manual 1 | . 1 . Terminals 1 | . 1 . Fabricators . | . . . Repair Stations . | . . . Recycling Units . | . . . Scanalyzers . | . . . Garrison Access . | . . . Terminal Hacks . | . . . Fabricator Hacks . | . . . Repair Station Hacks . | . . . Recycling Unit Hacks . | . . . Scanalyzer . | . . . Garrison Access Hacks . | . . . Unauthorized Hacks 1 | . 1 . Terminals 1 | . 1 . Assimilate 1 | . 1 . Fabricators . | . . . Repair Stations . | . . . Recycling Units . | . . . Scanalyzers . | . . . Garrison Access . | . . . Data Cores Recovered . | . . . Used . | . . . Hacking Detections . | . . . Full Trace Events . | . . . Feedback Events . | . . . Feedback Blocked . | . . . Robot Schematics Acquired . | . . . Robots Built . | . . . Authchips . | . . . Time . | . . . Total Robot Build Rating . | . . . Part Schematics Acquired . | . . . Parts Built . | . . . Authchips . | . . . Time . | . . . Total Part Build Rating . | . . . Parts Repaired . | . . . Time . | . . . Parts Recycled . | . . . Recycled Matter . | . . . Retrieved Matter . | . . . Retrieved Components . | . . . Parts Scanalyzed . | . . . Part Schematics Acquired . | . . . Parts Damaged . | . . . Bothacking | -11 -10 -9 ------------ Run | Yrd Mat Mat Used RIF Installer . | . . . Robots Hacked . | . . . Non-combat . | . . . Combat . | . . . Robot Hacks Applied . | . . . Relay Couplers Released . | . . . Fabnet Peak Effective % . | . . . Robots Rewired . | . . . Allies Hacked . | . . . Hacks Repelled . | . . . Allies | -11 -10 -9 -------- Run | Yrd Mat Mat Total Allies 1 | . 1 . Largest Group 1 | . 1 . Highest-Rated Group 10 | . 10 . Highest-Rated Ally 10 | . 10 . Total Orders . | . . . Ally Attacks . | . . . Total Damage . | . . . Kills . | . . . Allies Corrupted . | . . . Allies Melted . | . . . Intel | -11 -10 -9 ------- Run | Yrd Mat Mat Active Infowar (turns) 862 | . . 862 Sensors 498 | . . 498 Structural 364 | . . 364 Robot Analysis Total . | . . . Derelict Logs Recovered . | . . . Drone Launches . | . . . Drone Recoveries . | . . . Exploration | -11 -10 -9 ------------- Run | Yrd Mat Mat Turns Passed 1701 | 69 349 1283 Spaces Moved 670 | 50 128 492 Core 14 | 7 6 1 Treads 287 | . . 287 Legs 369 | 43 122 204 Wheels . | . . . Hover . | . . . Flight . | . . . Fastest Speed 50 | 50 100 120 Average Speed 148 | 110 119 160 Slowest Speed 300 | 120 150 300 Overloaded Moves . | . . . Propulsion Burnouts . | . . . Robots Hopped . | . . . Potential Cave-ins . | . . . Cave-ins Triggered . | . . . Exploration Rate (%) 28 | 4 22 58 Regions Visited 2 Branch Regions . Pre-discovered Areas . | . . . Known Exits Taken . | . . . Unknown Exits Taken 2 | 1 1 . Scrap Searched . | . . . Spaces Dug . | . . . Terrain Destroyed 10 | . . 10 Melee . | . . . Projectile 2 | . . 2 AOE 8 | . . 8 Terrain Rammed . | . . . Walls Destroyed . | . . . Machines Disabled . | . . . Actions | -11 -10 -9 --------- Run | Yrd Mat Mat Total 1168 | 62 232 874 Wait 297 | . 35 262 Move 668 | 49 127 492 Hop . | . . . Pick Up 15 | 6 5 4 Fast Attach 28 | 4 9 15 Attach 10 | 2 1 7 Detach 8 | . . 8 Swap 2 | . . 2 Drop 8 | 1 . 7 Fire 79 | . 55 24 Melee 53 | . . 53 Ram . | . . . Kick . | . . . Crush . | . . . Escape Stasis . | . . . Rewire . | . . . Trap . | . . . Miscellaneous . | . . . Route ------- -11/Scrapyard -10/Materials (discovered 2 exits: *Mat / [*Min]) -9/Materials (discovered 1 exit: [*Min]) History --------- Turn | Location | Event 12 | -11/Scrapyard | Discovered new exit (range 15) 70 | -11/Scrapyard | Entered Materials 242 | -10/Materials | Core integrity fell below 50% 311 | -10/Materials | Discovered new exit (range 8) 316 | -10/Materials | Build established: Mutant 362 | -10/Materials | Core integrity fell below 20% 374 | -10/Materials | Discovered new exit (range 16) 419 | -10/Materials | Entered another Materials area 419 | -9/Materials | Evolved 2 slots: Propulsion x2 567 | -9/Materials | Lost 5 parts (1p2n1u1w) 1176 | -9/Materials | Core integrity fell below 50% 1206 | -9/Materials | Discovered new exit (range 16) 1689 | -9/Materials | Core integrity fell below 20% 1702 | -9/Materials | Destroyed by G-34 Mercenary with Small Laser Last Messages --------------- 01662_ S-10 Pest destroyed. [Achievement: Ambidextrous] 01665_ S-10 Pest destroyed. 01670_ R-06 Scavenger collects Lgt. Assault Rifle. 01674_ G-47 Trooper destroyed. 01681_ G-34 Mercenary Aluminum Leg severed. 01681_ K-01 Serf collects debris. 01684_ G-34 Mercenary destroyed. 01684_ C-30 ARC bursts open, deploying its payload. 01684_ G-47 Trooper unfolds itself. 01684_ G-34 Mercenary unfolds itself. 01685_ K-01 Serf collects debris. 01696_ Arm. Treads destroyed. 01696_ Critical hit (Burn: +37). 01699_ K-01 Serf collects debris. 01700_ K-01 Serf destroyed. 01700_ Katana follow-up attack on G-47 Trooper. 01700_ Aluminum Leg destroyed. Map ----- +----------------------------------------------------+ | ???????????????????????# """ # ## | | ???????????????????????# # ## | | ????????????????????????####??# % * ## | | ??????????????????????????????###/####+####### | | ??????????????????????????????# # * !## | | ????????????????????????????????? ? #= #? | | ?????????????????????????????????""? # #? | | ?????????????????????????????????""??# """" #? | | ?????????????????????????????????????# """" #? | | ?????????????????????????????????????# """" #? | | ?????????????????????????????????????########? | | ?????????????????????????????????????????????? | | ?????????????????????????????????????????????? | | ?????????????????????????????????????????????? | | ?????????????????????????????????????????????? | | ?????????????????????????????????????????????? | | ??????????????????????????????## ????????????? | | ?????????????????????? #### ????????????? | | ?????????????????#######+###### ????????????? | | ?????????????????# + ?????????????? | | ?????????????????# # ^ # #???? | | ?????????????????#[]] g# """ #####+#####???? | | ?????????????????#[] g/ "R ? | | ?????????????????#]]Ygg# """ ? | | ?????????????????# =*%[# """ | | ?????????????????#!=%@*# | | ???????????????? ####g## | | ???????????????? ####%= """ ? | | ???????????????? + ==g """ | | ???????????????? #### """ ???? # | | ???????????????????## ###?????????## | | ???????????????????## + ????????? # | | ?????????????? #### """ # ?????????? + | | ??????????????####### """ # ?????????? # | | ?????????????? """ # ?? ######### | | ?????????????? # ?? ######### | | ?????????????? # ?? # # | | ?????????????? ! # ?? #"" # | | ?????????????? # ?? #"? / ^ | | ????????????? # #"" # | | ?????????????/### ###### ] # ^ | | ????????????? T ############## + # ^ | | ??????????????? #################+########## | | ???????????????????????????## T + | | ???????????????????????????## ######## | | ???????????????????????????## ! ######## | | ???????????????????????????## ##?????? | | ???????????????????????????#############?????? | | | | | +----------------------------------------------------+ Best States ------------- Heat Dissipation 28 Energy Generation 10 Energy Capacity 250 Matter Stores 300 Matter Capacity 300 Sight Range 16 Robot Scan Range 14 Terrain Scan Density 10 Armor Coverage 225 Evasion (%) 55 Recoil Reduction 4 Item Schematics ----------------- None Robot Schematics ------------------ None Fabricated ------------ Nothing Repaired ---------- Nothing Alien Tech Used ----------------- None Achievements -------------- Ambidextrous Challenges ------------ None Game ------ Seed RainbowLatentWartreads Manual? 0 Play Time 00:15:30 Cumulative 8.1 hours Start 2025.09.24 @ 16:35:21 End 2025.09.24 @ 16:44:37 Sessions 1 Manual Loads 0 Difficulty Rogue Special Mode None Game No. 23 Rogue 9 Adventurer 14 Explorer 0 Win Type - Total 0 Types 0/0/0/0/0/0/0/0/0/0 Lore% 4 Gallery% 14 Achievement% 20 Wizard Run 0 Options --------- Layout 1 ASCII 0 Keyboard 1 Movement Numpad Keybinds 0 Fullscreen 1 Font 24/Smallcaps Map View 50x35 Zoom Use 0% Tactical HUD 1 Map Filters NONE Filters NONE Steam 0 RUN: 14c38b81-15cd-4b11-986e-e76bb72e6ea8